{"text_format":"1","workbook":"xlsx","n_sheets":3,"sheets":["Equipes","Résultats","Classement"],"not_rendered":{"charts":0,"images":1,"macros":1,"external_links":0,"defined_names":1,"comments":0,"pivot_tables":0},"unopened":[],"bounds":{"document_bytes":16777216,"sheet_cells":100000,"rows_first":2000,"rows_last":500,"rows_between":2000,"halvings":0,"cell_chars":16384,"cell_head_chars":4096},"cells_cut":0,"cells_raw":0,"read":"whole","date_system":"1900"}

{"sheet":"Equipes","index":0,"n_rows":13,"n_cols":6,"rows_kept":13,"cut":false,"hidden":false,"merged":[]}
[]
[]
[]
[]
[null,null,"Equipes inscrites"]
[]
[null,null,null,null,null,"Rentrer uniquement le nom des équipes et les scores."]
[]
[]
[null,"A : ","VEYRE MONTON 2"]
[null,"B :","VEYRE MONTON 3"]
[null,"C :","VEYRE MONTON 4"]
[null,"D :","VICHY"]

{"sheet":"Résultats","index":1,"n_rows":11,"n_cols":16,"rows_kept":11,"cut":false,"hidden":false,"merged":[[10,15,10,17],[4,10,4,12],[10,10,10,12],[6,10,6,12],[7,15,7,17],[8,15,8,17],[5,10,5,12],[7,10,7,12],[8,10,8,12],[9,10,9,12],[4,15,4,17],[5,15,5,17],[8,1,8,3],[5,1,5,3],[9,1,9,3],[6,15,6,17],[9,15,9,17],[5,6,5,8],[6,6,6,8],[7,6,7,8],[8,6,8,8],[9,6,9,8],[10,1,10,3],[6,1,6,3],[7,1,7,3],[1,10,1,17],[3,10,3,12],[2,10,2,12],[2,15,2,17],[3,15,3,17],[10,6,10,8],[1,1,1,8],[2,6,2,8],[3,6,3,8],[4,6,4,8],[2,1,2,3],[3,1,3,3],[4,1,4,3]]}
[]
[null,"MATCHS ALLER",null,null,null,null,null,null,null,null,"MATCHS RETOUR"]
[null,"1ere Journée",null,null,null,null,"2019-12-01",null,null,null,"8eme Journée",null,null,null,null,"2020-01-05"]
[null,{"$f":"Equipes!C10","v":"VEYRE MONTON 2"},null,null,15,1,{"$f":"Equipes!C11","v":"VEYRE MONTON 3"},null,null,null,{"$f":"Résultats!G4","v":"VEYRE MONTON 3"},null,null,null,null,{"$f":"Résultats!B4","v":"VEYRE MONTON 2"}]
[null,{"$f":"Equipes!C13","v":"VICHY"},null,null,11,5,{"$f":"Equipes!C12","v":"VEYRE MONTON 4"},null,null,null,{"$f":"Résultats!G5","v":"VEYRE MONTON 4"},null,null,null,null,{"$f":"Résultats!B5","v":"VICHY"}]
[null,"2emeJournée",null,null,null,null,"2019-12-01",null,null,null,"9eme journée",null,null,null,null,"2020-01-05"]
[null,{"$f":"G5","v":"VEYRE MONTON 4"},null,null,7,9,{"$f":"B4","v":"VEYRE MONTON 2"},null,null,null,{"$f":"Résultats!G7","v":"VEYRE MONTON 2"},null,null,null,null,{"$f":"Résultats!B7","v":"VEYRE MONTON 4"}]
[null,{"$f":"B5","v":"VICHY"},null,null,13,3,{"$f":"G4","v":"VEYRE MONTON 3"},null,null,null,{"$f":"Résultats!G8","v":"VEYRE MONTON 3"},null,null,null,null,{"$f":"Résultats!B8","v":"VICHY"}]
[null,"3eme Journée",null,null,null,null,"2019-12-01",null,null,null,"10eme Journée",null,null,null,null,"2020-01-05"]
[null,{"$f":"B4","v":"VEYRE MONTON 2"},null,null,11,5,{"$f":"B5","v":"VICHY"},null,null,null,{"$f":"Résultats!G10","v":"VICHY"},null,null,null,null,{"$f":"Résultats!B10","v":"VEYRE MONTON 2"}]
[null,{"$f":"G4","v":"VEYRE MONTON 3"},null,null,3,13,{"$f":"G5","v":"VEYRE MONTON 4"},null,null,null,{"$f":"Résultats!G11","v":"VEYRE MONTON 4"},null,null,null,null,{"$f":"Résultats!B11","v":"VEYRE MONTON 3"}]

{"sheet":"Classement","index":2,"n_rows":7,"n_cols":16,"rows_kept":7,"cut":false,"hidden":false,"merged":[[0,0,0,16],[1,0,1,3],[1,4,1,13],[2,0,6,0],[2,1,2,2],[2,16,6,16],[4,1,4,2],[3,1,3,2],[6,1,6,2],[5,1,5,2]]}
["                          Resultats et Classement du championnat"]
[null,null,null,null,"SAISON 2019 - 2020"]
[null,"CLASS",null,"EQUIPES","POINTS","DIFF.","MATCHS JOUES","MATCHS GAGNES","BONUS OFF.","MATCHS PERDUS","BONUS DEF.","MATCHS NULS","FORFAITS NON EXCUSES","FORFAITS EXCUSES","PARTIES GAGNEES","PARTIES PERDUES"]
[null,1,null,{"$f":"Equipes!C10","v":"VEYRE MONTON 2"},{"$f":"H4*4+J4*1+L4*2+I4*1+K4*1","v":13},{"$f":"O4-P4","v":22},{"$f":"H4+J4+L4+M4+N4","v":3},{"$f":"IF(Résultats!E4>8,1,0)+IF(Résultats!F7>8,1,0)+IF(Résultats!E10>8,1,0)+IF(Résultats!O4>8,1,0)+IF(Résultats!N7>8,1,0)+IF(Résultats!O10>8,1,0)","v":3},{"$f":"IF(Résultats!E4>11,1,0)+IF(Résultats!F7>11,1,0)+IF(Résultats!E10>11,1,0)+IF(Résultats!O4>11,1,0)+IF(Résultats!N7>11,1,0)+IF(Résultats!O10>11,1,0)","v":1},{"$f":"IF(ISBLANK(Résultats!E4),\"0\",(IF(Résultats!E4<8,1,0)))+IF(ISBLANK(Résultats!F7),\"0\",(IF(Résultats!F7<8,1,0)))+IF(ISBLANK(Résultats!E10),\"0\",(IF(Résultats!E10<8,1,0)))+IF(ISBLANK(Résultats!O4),\"0\",(IF(Résultats!O4<8,1,0)))+IF(ISBLANK(Résultats!N7),\"0\",(IF(Résultats!N7<8,1,0)))+IF(ISBLANK(Résultats!O10),\"0\",(IF(Résultats!O10<8,1,0)))","v":0},{"$f":"IF(AND(Résultats!E4>4,Résultats!E4<8),1,0)+IF(AND(Résultats!F7>4,Résultats!F7<8),1,0)+IF(AND(Résultats!E10>4,Résultats!E10<8),1,0)+IF(AND(Résultats!O4>4,Résultats!O4<8),1,0)+IF(AND(Résultats!N7>4,Résultats!N7<8),1,0)+IF(AND(Résultats!O10>4,Résultats!O10<8),1,0)","v":0},{"$f":"IF(Résultats!E4=8,1,0)+IF(Résultats!F7=8,1,0)+IF(Résultats!E10=8,1,0)+IF(Résultats!O4=8,1,0)+IF(Résultats!N7=8,1,0)+IF(Résultats!O10=8,1,0)","v":0},null,null,{"$f":"Résultats!E4+Résultats!F7+Résultats!E10+Résultats!O4+Résultats!N7+Résultats!O10","v":35},{"$f":"Résultats!F4+Résultats!E7+Résultats!F10+Résultats!N4+Résultats!O7+Résultats!N10","v":13}]
[null,2,null,{"$f":"Equipes!C13","v":"VICHY"},{"$f":"H5*4+J5*1+L5*2+I5*1+K5*1","v":11},{"$f":"O5-P5","v":10},{"$f":"H5+J5+L5+M5+N5","v":3},{"$f":"IF(Résultats!E5>8,1,0)+IF(Résultats!E8>8,1,0)+IF(Résultats!F10>8,1,0)+IF(Résultats!O5>8,1,0)+IF(Résultats!O8>8,1,0)+IF(Résultats!N10>8,1,0)","v":2},{"$f":"IF(Résultats!E5>11,1,0)+IF(Résultats!E8>11,1,0)+IF(Résultats!F10>11,1,0)+IF(Résultats!O5>11,1,0)+IF(Résultats!O8>11,1,0)+IF(Résultats!N10>11,1,0)","v":1},{"$f":"IF(ISBLANK(Résultats!E5),\"0\",(IF(Résultats!E5<8,1,0)))+IF(ISBLANK(Résultats!E8),\"0\",(IF(Résultats!E8<8,1,0)))+IF(ISBLANK(Résultats!F10),\"0\",(IF(Résultats!F10<8,1,0)))+IF(ISBLANK(Résultats!O5),\"0\",(IF(Résultats!O5<8,1,0)))+IF(ISBLANK(Résultats!O8),\"0\",(IF(Résultats!O8<8,1,0)))+IF(ISBLANK(Résultats!N10),\"0\",(IF(Résultats!N10<8,1,0)))","v":1},{"$f":"IF(AND(Résultats!E5>4,Résultats!E5<8),1,0)+IF(AND(Résultats!E8>4,Résultats!E8<8),1,0)+IF(AND(Résultats!F10>4,Résultats!F10<8),1,0)+IF(AND(Résultats!O5>4,Résultats!O5<8),1,0)+IF(AND(Résultats!O8>4,Résultats!O8<8),1,0)+IF(AND(Résultats!N10>4,Résultats!N10<8),1,0)","v":1},{"$f":"IF(Résultats!E5=8,1,0)+IF(Résultats!E8=8,1,0)+IF(Résultats!F10=8,1,0)+IF(Résultats!O5=8,1,0)+IF(Résultats!O8=8,1,0)+IF(Résultats!N10=8,1,0)","v":0},null,null,{"$f":"Résultats!E5+Résultats!E8+Résultats!F10+Résultats!O5+Résultats!O8+Résultats!N10","v":29},{"$f":"Résultats!F5+Résultats!F8+Résultats!E10+Résultats!N5+Résultats!N8+Résultats!O10","v":19}]
[null,3,null,{"$f":"Equipes!C12","v":"VEYRE MONTON 4"},{"$f":"H6*4+J6*1+L6*2+I6*1+K6*1","v":9},{"$f":"O6-P6","v":2},{"$f":"H6+J6+L6+M6+N6","v":3},{"$f":"IF(Résultats!F5>8,1,0)+IF(Résultats!E7>8,1,0)+IF(Résultats!F11>8,1,0)+IF(Résultats!N5>8,1,0)+IF(Résultats!O7>8,1,0)+IF(Résultats!N11>8,1,0)","v":1},{"$f":"IF(Résultats!F5>11,1,0)+IF(Résultats!E7>11,1,0)+IF(Résultats!F11>11,1,0)+IF(Résultats!N5>11,1,0)+IF(Résultats!O7>11,1,0)+IF(Résultats!N11>11,1,0)","v":1},{"$f":"IF(ISBLANK(Résultats!F5),\"0\",(IF(Résultats!F5<8,1,0)))+IF(ISBLANK(Résultats!E7),\"0\",(IF(Résultats!E7<8,1,0)))+IF(ISBLANK(Résultats!F11),\"0\",(IF(Résultats!F11<8,1,0)))+IF(ISBLANK(Résultats!N5),\"0\",(IF(Résultats!N5<8,1,0)))+IF(ISBLANK(Résultats!O7),\"0\",(IF(Résultats!O7<8,1,0)))+IF(ISBLANK(Résultats!N11),\"0\",(IF(Résultats!N11<8,1,0)))","v":2},{"$f":"IF(AND(Résultats!F5>4,Résultats!F5<8),1,0)+IF(AND(Résultats!E7>4,Résultats!E7<8),1,0)+IF(AND(Résultats!F11>4,Résultats!F11<8),1,0)+IF(AND(Résultats!N5>4,Résultats!N5<8),1,0)+IF(AND(Résultats!O7>4,Résultats!O7<8),1,0)+IF(AND(Résultats!N11>4,Résultats!N11<8),1,0)","v":2},{"$f":"IF(Résultats!F5=8,1,0)+IF(Résultats!E7=8,1,0)+IF(Résultats!F11=8,1,0)+IF(Résultats!N5=8,1,0)+IF(Résultats!O7=8,1,0)+IF(Résultats!N11=8,1,0)","v":0},null,null,{"$f":"Résultats!F5+Résultats!E7+Résultats!F11+Résultats!N5+Résultats!O7+Résultats!N11","v":25},{"$f":"Résultats!E5+Résultats!F7+Résultats!E11+Résultats!O5+Résultats!N7+Résultats!O11","v":23}]
[null,4,null,{"$f":"Equipes!C11","v":"VEYRE MONTON 3"},{"$f":"H7*4+J7*1+L7*2+I7*1+K7*1","v":3},{"$f":"O7-P7","v":-34},{"$f":"H7+J7+L7+M7+N7","v":3},{"$f":"IF(Résultats!F4>8,1,0)+IF(Résultats!F8>8,1,0)+IF(Résultats!E11>8,1,0)+IF(Résultats!N4>8,1,0)+IF(Résultats!N8>8,1,0)+IF(Résultats!O11>8,1,0)","v":0},{"$f":"IF(Résultats!F4>11,1,0)+IF(Résultats!F8>11,1,0)+IF(Résultats!E11>11,1,0)+IF(Résultats!N4>11,1,0)+IF(Résultats!N8>11,1,0)+IF(Résultats!O11>11,1,0)","v":0},{"$f":"IF(ISBLANK(Résultats!F4),\"0\",(IF(Résultats!F4<8,1,0)))+IF(ISBLANK(Résultats!F8),\"0\",(IF(Résultats!F8<8,1,0)))+IF(ISBLANK(Résultats!E11),\"0\",(IF(Résultats!E11<8,1,0)))+IF(ISBLANK(Résultats!N4),\"0\",(IF(Résultats!N4<8,1,0)))+IF(ISBLANK(Résultats!N8),\"0\",(IF(Résultats!N8<8,1,0)))+IF(ISBLANK(Résultats!O11),\"0\",(IF(Résultats!O11<8,1,0)))","v":3},{"$f":"IF(AND(Résultats!F4>4,Résultats!F4<8),1,0)+IF(AND(Résultats!F8>4,Résultats!F8<8),1,0)+IF(AND(Résultats!E11>4,Résultats!E11<8),1,0)+IF(AND(Résultats!N4>4,Résultats!N4<8),1,0)+IF(AND(Résultats!N8>4,Résultats!N8<8),1,0)+IF(AND(Résultats!N11>4,Résultats!N11<8),1,0)","v":0},{"$f":"IF(Résultats!F4=8,1,0)+IF(Résultats!F8=8,1,0)+IF(Résultats!E11=8,1,0)+IF(Résultats!N4=8,1,0)+IF(Résultats!N8=8,1,0)+IF(Résultats!F11=8,1,0)","v":0},null,null,{"$f":"Résultats!F4+Résultats!F8+Résultats!E11+Résultats!N4+Résultats!N8+Résultats!O11","v":7},{"$f":"Résultats!E4+Résultats!E8+Résultats!F11+Résultats!O4+Résultats!O8+Résultats!N11","v":41}]